[Event "2nd Namma Bengaluru Open-B 2025"]
[Site "Bengaluru"]
[Date "2025.04.12"]
[Round "6.1"]
[White "Nayak, Biswajit"]
[Black "Rohith P"]
[Result "1-0"]
[Annotator "RC"]
[ECO "A50"]
[WhiteElo "1979"]
[BlackElo "1808"]
[PlyCount "61"]
[EventDate "2025.04.10"]
[EventType "swiss"]
[EventCountry "IND"]
[SourceTitle "playchess.com"]
[Source "ChessBase"]
[SourceQuality "1"]
[TimeControl "3600+30"]

1. d4 {[%emt 0:02:17]} Nf6 {[%emt 0:00:04]} 2. Nf3 {[%emt 0:00:09]} b6 {[%emt 0:00:04]} 3. g3 {[%emt 0:00:11]} Bb7 {[%emt 0:00:03]} 4. Bg2 {[%emt 0:00:06]} g6 {[%emt 0:00:04]} 5. O-O {[%emt 0:00:19]} Bg7 {[%emt 0:00:06]} 6. c4 {[%emt 0:00:19]} O-O {[%emt 0:00:06]} 7. Nc3 {[%emt 0:00:10]} d6 {[%emt 0:00:05]} 8. h3 {[%emt 0:01:10]} Nbd7 {[%emt 0:03:06]} 9. Qc2 {[%emt 0:03:41]} c5 {[%emt 0:02:02]} 10. d5 {[%emt 0:01:05]} a6 {[%emt 0:00:43]} 11. a4 {[%emt 0:01:31]} Ne8 {[%emt 0:04:26]} 12. Re1 {[%emt 0:02:29]} Nc7 {[%emt 0:10:48]} 13. e4 {[%emt 0:01:46]} e5 {[%emt 0:20:40]} 14. Bg5 {[%emt 0:04:49]} f6 {[%emt 0:04:56]} 15. Bd2 {[%emt 0:01:01]} Rf7 {[%emt 0:00:52]} 16. h4 {[%emt 0:00:55]} Nf8 {[%emt 0:01:33]} 17. Nd1 {[%emt 0:08:07]} Bc8 {[%emt 0:09:50]} 18. h5 {[%emt 0:02:06]} Bg4 {[%emt 0:03:19]} 19. h6 {[%emt 0:01:10]} Bh8 {[%emt 0:00:07]} 20. Ne3 {[%emt 0:00:35]} Bd7 {[%emt 0:00:20]} 21. Nh4 {[%emt 0:03:15]} Be8 {[%emt 0:01:53]} 22. Bh3 {[%emt 0:01:09]} Bd7 {[%emt 0:00:11]} 23. Bxd7 {[%emt 0:00:22]} Nxd7 {[%emt 0:00:01]} 24. Qd1 {[%emt 0:00:22]} Qf8 {[%emt 0:00:07]} 25. Nef5 {[%emt 0:01:24]} Qb8 {[%emt 0:07:34]} 26. Nxd6 {[%emt 0:00:39]} Rf8 {[%emt 0:00:00]} 27. Qg4 {[%emt 0:00:18]} f5 {[%emt 0:00:00]} 28. Nxg6 {[%emt 0:01:33]} Bf6 {[%emt 0:00:00]} 29. Ne7+ {[%emt 0:00:11]} Kh8 {[%emt 0:00:00]} 30. Qg8+ {[%emt 0:00:09]} Rxg8 {[%emt 0:00:00]} 31. Nf7# {[%emt 0:00:04]} 1-0

[Event "2nd Namma Bengaluru Open-B 2025"]
[Site "Bengaluru"]
[Date "2025.04.12"]
[Round "6.2"]
[White "Afreed T Khan"]
[Black "Elesh Tripathi"]
[Result "1/2-1/2"]
[Annotator "RC"]
[ECO "D10"]
[WhiteElo "1921"]
[BlackElo "1758"]
[PlyCount "43"]
[EventDate "2025.04.10"]
[EventType "swiss"]
[EventCountry "IND"]
[SourceTitle "playchess.com"]
[Source "ChessBase"]
[SourceQuality "1"]
[TimeControl "3600+30"]

1. d4 {[%emt 0:03:52]} d5 {[%emt 0:00:08]} 2. c4 {[%emt 0:00:04]} c6 {[%emt 0:00:05]} 3. cxd5 {[%emt 0:00:05]} cxd5 {[%emt 0:00:06]} 4. Bf4 {[%emt 0:00:05]} Nf6 {[%emt 0:00:08]} 5. Nc3 {[%emt 0:00:05]} g6 {[%emt 0:00:05]} 6. e3 {[%emt 0:00:08]} Bg7 {[%emt 0:00:05]} 7. Bxb8 {[%emt 0:05:14]} Rxb8 {[%emt 0:00:37]} 8. Qa4+ {[%emt 0:00:30]} Bd7 {[%emt 0:01:23]} 9. Qxa7 {[%emt 0:00:58]} b5 {[%emt 0:00:48]} 10. Nf3 {[%emt 0:15:48]} b4 {[%emt 0:01:38]} 11. Nb1 {[%emt 0:00:23]} Ne4 {[%emt 0:26:47]} 12. Nbd2 {[%emt 0:06:00]} Rc8 {[%emt 0:13:46]} 13. Bd3 {[%emt 0:07:07]} Rc7 {[%emt 0:03:57]} 14. Qa6 {[%emt 0:01:34]} Nxd2 {[%emt 0:01:22]} 15. Nxd2 {[%emt 0:01:34]} Qb8 {[%emt 0:03:27]} 16. Qa5 {[%emt 0:10:45]} e6 {[%emt 0:02:04]} 17. Nb3 {[%emt 0:03:38]} Bf8 {[%emt 0:00:29]} 18. Nc5 {[%emt 0:01:46]} Bxc5 {[%emt 0:00:19]} 19. dxc5 {[%emt 0:00:03]} Ra7 {[%emt 0:00:11]} 20. Qb6 {[%emt 0:00:35]} Qxb6 {[%emt 0:00:20]} 21. cxb6 {[%emt 0:00:08]} Rb7 {[%emt 0:00:04]} 22. a4 {[%emt 0:11:08]} 1/2-1/2

[Event "2nd Namma Bengaluru Open-B 2025"]
[Site "Bengaluru"]
[Date "2025.04.12"]
[Round "6.3"]
[White "Narahari Geethika Hasini"]
[Black "Anushka Gupta"]
[Result "1/2-1/2"]
[Annotator "NA RC"]
[ECO "E14"]
[WhiteElo "1856"]
[BlackElo "1739"]
[PlyCount "105"]
[EventDate "2025.04.10"]
[EventType "swiss"]
[EventCountry "IND"]
[SourceTitle "playchess.com"]
[Source "ChessBase"]
[SourceQuality "1"]
[TimeControl "3600+30"]

1. d4 {[%emt 0:00:06]} Nf6 {[%emt 0:00:20]} 2. c4 {[%emt 0:00:16]} e6 {[%emt 0:00:05]} 3. Nf3 {[%emt 0:00:16]} Bb4+ {[%emt 0:00:11]} 4. Nbd2 {[%emt 0:00:10]} b6 {[%emt 0:00:47]} 5. e3 {[%emt 0:00:13]} Bb7 {[%emt 0:00:06]} 6. Bd3 {[%emt 0:00:10]} O-O {[%emt 0:00:27]} 7. O-O {[%emt 0:01:32]} d5 {[%emt 0:01:52]} 8. Ne5 {[%emt 0:01:50]} c5 {[%emt 0:03:10]} 9. a3 {[%emt 0:04:00]} Bxd2 {[%emt 0:00:55]} 10. Bxd2 {[%emt 0:03:15]} dxc4 {[%emt 0:00:48]} 11. Bxc4 {[%emt 0:00:42]} Nbd7 {[%emt 0:05:23]} 12. f4 {[%emt 0:02:44]} Qe7 {[%emt 0:06:14]} 13. Be1 {[%emt 0:08:40]} Ne4 {[%emt 0:03:37]} 14. Qb3 {[%emt 0:05:21]} cxd4 {[%emt 0:09:30]} 15. exd4 {[%emt 0:01:48]} Nxe5 {[%emt 0:01:06]} 16. dxe5 {[%emt 0:10:36]} Qc5+ {[%emt 0:00:48]} 17. Kh1 {[%emt 0:03:47]} Rfc8 {[%emt 0:03:56]} 18. Bd3 {[%emt 0:01:34]} Qc6 {[%emt 0:02:49]} 19. Bxe4 {[%emt 0:02:50]} Qxe4 {[%emt 0:00:02]} 20. Qg3 {[%emt 0:20:40]} Rc2 {[%emt 0:02:25]} 21. Rf2 {[%emt 0:00:00]} Rd8 {[%emt 0:07:07]} 22. Bc3 {[%emt 0:00:00]} Rd3 {[%emt 0:03:40]} 23. Qh4 {[%emt 0:00:00]} Rxf2 {[%emt 0:05:56]} 24. Qxf2 {[%emt 0:00:00]} h5 {[%emt 0:02:02]} 25. Rg1 {[%emt 0:00:00]} Qf5 {[%emt 0:00:58]} 26. Qh4 {[%emt 0:00:00]} Kh7 {[%emt 0:02:25]} 27. Rf1 {[%emt 0:00:00]} Qg6 {[%emt 0:02:21]} 28. Qg5 {[%emt 0:00:00]} Qxg5 {[%emt 0:00:12]} 29. fxg5 {[%emt 0:00:00]} h4 {[%emt 0:00:44]} 30. Kg1 {[%emt 0:00:00]} Kg6 {[%emt 0:00:09]} 31. Rf4 {[%emt 0:00:00]} h3 {[%emt 0:01:36]} 32. gxh3 {[%emt 0:00:00]} Rxh3 {[%emt 0:00:04]} 33. Rf2 {[%emt 0:00:38]} Rh4 {[%emt 0:00:44]} 34. Rd2 {[%emt 0:01:23]} Rg4+ {[%emt 0:00:41]} 35. Kf1 {[%emt 0:00:46]} Bd5 {[%emt 0:00:24]} 36. Rd4 {[%emt 0:03:29]} Rxg5 {[%emt 0:00:29]} 37. h4 {[%emt 0:01:00]} Rg3 {[%emt 0:00:57]} 38. Rf4 {[%emt 0:00:38]} Rf3+ {[%emt 0:01:17]} 39. Rxf3 {[%emt 0:00:04]} Bxf3 {[%emt 0:00:04]} 40. Kf2 {[%emt 0:00:09]} Bd1 {[%emt 0:00:32]} 41. Ke3 {[%emt 0:00:34]} Kf5 {[%emt 0:00:30]} 42. Kd4 {[%emt 0:01:27]} f6 {[%emt 0:00:26]} 43. Bb4 {[%emt 0:00:29]} fxe5+ {[%emt 0:01:04]} 44. Ke3 {[%emt 0:00:03]} a5 {[%emt 0:00:42]} 45. Bf8 {[%emt 0:00:26]} g6 {[%emt 0:00:06]} 46. b4 {[%emt 0:00:51]} axb4 {[%emt 0:01:17]} 47. axb4 {[%emt 0:00:21]} b5 {[%emt 0:00:18]} 48. Bd6 {[%emt 0:00:13]} e4 {[%emt 0:00:24]} 49. Bc7 {[%emt 0:00:50]} Bc2 {[%emt 0:00:23]} 50. Bd6 {[%emt 0:00:20]} e5 {[%emt 0:00:51]} 51. Bc7 {[%emt 0:00:44]} Ke6 {[%emt 0:00:06]} 52. Bd8 {[%emt 0:00:19]} Kd5 {[%emt 0:00:27]} 53. Be7 $15 {[%emt 0:00:05]} 1/2-1/2

[Event "2nd Namma Bengaluru Open-B 2025"]
[Site "Bengaluru"]
[Date "2025.04.12"]
[Round "6.4"]
[White "Nijesh R"]
[Black "Justin, Joseph"]
[Result "1-0"]
[Annotator "RC"]
[ECO "B69"]
[WhiteElo "1813"]
[BlackElo "1923"]
[PlyCount "79"]
[EventDate "2025.04.10"]
[EventType "swiss"]
[EventCountry "IND"]
[SourceTitle "playchess.com"]
[Source "ChessBase"]
[SourceQuality "1"]
[TimeControl "3600+30"]

1. e4 {[%emt 0:00:54]} c5 {[%emt 0:00:12]} 2. Nf3 {[%emt 0:00:11]} d6 {[%emt 0:00:06]} 3. d4 {[%emt 0:00:12]} cxd4 {[%emt 0:00:07]} 4. Nxd4 {[%emt 0:00:05]} Nf6 {[%emt 0:00:08]} 5. Nc3 {[%emt 0:00:08]} Nc6 {[%emt 0:00:06]} 6. Bg5 {[%emt 0:00:47]} e6 {[%emt 0:00:10]} 7. Qd2 {[%emt 0:00:36]} a6 {[%emt 0:00:30]} 8. O-O-O {[%emt 0:00:37]} Be7 {[%emt 0:00:17]} 9. f4 {[%emt 0:00:13]} Bd7 {[%emt 0:00:46]} 10. Nf3 {[%emt 0:00:36]} b5 {[%emt 0:00:10]} 11. Bxf6 {[%emt 0:00:34]} gxf6 {[%emt 0:00:11]} 12. f5 {[%emt 0:00:30]} Ne5 {[%emt 0:11:20]} 13. fxe6 {[%emt 0:01:21]} fxe6 {[%emt 0:00:10]} 14. Nxe5 {[%emt 0:02:18]} fxe5 {[%emt 0:00:29]} 15. h4 {[%emt 0:05:08]} h5 {[%emt 0:06:47]} 16. Ne2 {[%emt 0:16:10]} Qb6 {[%emt 0:09:44]} 17. Ng3 {[%emt 0:03:28]} O-O-O {[%emt 0:02:38]} 18. Be2 {[%emt 0:03:05]} Rdg8 {[%emt 0:02:26]} 19. Rh3 {[%emt 0:08:19]} Kb7 {[%emt 0:07:07]} 20. Bf3 {[%emt 0:06:58]} Be8 {[%emt 0:05:04]} 21. Kb1 {[%emt 0:03:53]} Qc5 {[%emt 0:02:36]} 22. Qe2 {[%emt 0:05:06]} Bxh4 {[%emt 0:02:11]} 23. Nxh5 {[%emt 0:01:52]} Bg5 {[%emt 0:03:20]} 24. Rdh1 {[%emt 0:03:24]} Bg6 {[%emt 0:03:11]} 25. Bg4 {[%emt 0:02:23]} Re8 {[%emt 0:01:35]} 26. Ng7 {[%emt 0:00:33]} Rxh3 {[%emt 0:00:53]} 27. gxh3 {[%emt 0:00:02]} Rg8 {[%emt 0:02:24]} 28. Nxe6 {[%emt 0:00:20]} Qe3 {[%emt 0:00:12]} 29. Nxg5 {[%emt 0:00:36]} Qxg5 {[%emt 0:00:20]} 30. Qd3 {[%emt 0:00:20]} Kc7 {[%emt 0:02:46]} 31. a4 {[%emt 0:01:15]} Be8 {[%emt 0:01:50]} 32. Be6 {[%emt 0:01:10]} Rg6 {[%emt 0:01:49]} 33. Qc3+ {[%emt 0:00:33]} Kd8 {[%emt 0:00:02]} 34. Bf5 {[%emt 0:00:29]} Rf6 {[%emt 0:01:38]} 35. h4 {[%emt 0:01:08]} Qh5 {[%emt 0:00:29]} 36. Rg1 {[%emt 0:00:16]} Qh6 {[%emt 0:01:18]} 37. Qc8+ {[%emt 0:01:10]} Ke7 {[%emt 0:00:05]} 38. Rg8 {[%emt 0:00:43]} Rf8 {[%emt 0:01:23]} 39. Qc7+ {[%emt 0:00:09]} Kf6 {[%emt 0:00:23]} 40. Qxd6+ {[%emt 0:00:03]} 1-0

[Event "2nd Namma Bengaluru Open-B 2025"]
[Site "Bengaluru"]
[Date "2025.04.12"]
[Round "6.5"]
[White "Aditya Dileepraj"]
[Black "Subramanian, R M"]
[Result "1-0"]
[Annotator "NA RC"]
[ECO "B07"]
[WhiteElo "1746"]
[BlackElo "1863"]
[PlyCount "83"]
[EventDate "2025.04.10"]
[EventType "swiss"]
[EventCountry "IND"]
[SourceTitle "playchess.com"]
[Source "ChessBase"]
[SourceQuality "1"]
[TimeControl "3600+30"]

1. d4 {[%emt 0:00:19]} d6 {[%emt 0:00:09]} 2. e4 {[%emt 0:00:07]} Nf6 {[%emt 0:00:06]} 3. Nc3 {[%emt 0:00:07]} c6 {[%emt 0:00:06]} 4. Nf3 {[%emt 0:00:23]} Bg4 {[%emt 0:00:03]} 5. Be2 {[%emt 0:00:26]} e6 {[%emt 0:00:34]} 6. O-O {[%emt 0:00:35]} Be7 {[%emt 0:00:27]} 7. Be3 {[%emt 0:00:39]} O-O {[%emt 0:00:21]} 8. Nd2 {[%emt 0:01:10]} Bxe2 {[%emt 0:00:37]} 9. Qxe2 {[%emt 0:00:16]} d5 {[%emt 0:00:35] B07: Pirc Defence: Miscellaneous Systems.} 10. e5 {[%emt 0:00:36]} Nfd7 {[%emt 0:00:04]} 11. Nd1 {[%emt 0:02:20]} c5 {[%emt 0:00:39]} 12. c3 {[%emt 0:00:03]} Nc6 {[%emt 0:00:47]} 13. f4 {[%emt 0:00:48]} Qb6 {[%emt 0:01:53]} 14. Nf3 {[%emt 0:01:06]} Rac8 {[%emt 0:05:03]} 15. Nf2 {[%emt 0:04:13]} cxd4 {[%emt 0:01:52]} 16. Nxd4 {[%emt 0:00:34]} Nxd4 {[%emt 0:02:00]} 17. cxd4 {[%emt 0:03:39]} Nb8 {[%emt 0:01:31]} 18. Rad1 {[%emt 0:05:42]} Rc4 {[%emt 0:09:31]} 19. Nd3 $11 {[%emt 0:06:44]} g6 {[%emt 0:06:34]} 20. f5 {[%emt 0:00:47]} exf5 {[%emt 0:05:40]} 21. Nf4 {[%emt 0:00:07]} Qc6 {[%emt 0:02:28]} 22. Rc1 {[%emt 0:01:02]} Rxc1 {[%emt 0:01:46]} 23. Rxc1 {[%emt 0:00:11]} Qd7 {[%emt 0:00:07]} 24. Qf3 {[%emt 0:00:28]} Rd8 {[%emt 0:00:29]} 25. Bf2 {[%emt 0:09:17]} Na6 {[%emt 0:06:23]} 26. h4 {[%emt 0:02:10]} Nc7 {[%emt 0:06:19]} 27. h5 {[%emt 0:02:22]} Ne6 {[%emt 0:01:39]} 28. Nxe6 {[%emt 0:01:30]} Qxe6 {[%emt 0:03:06]} 29. Rc7 {[%emt 0:00:07]} Rd7 {[%emt 0:02:11]} 30. Rc8+ {[%emt 0:00:17]} Rd8 {[%emt 0:00:24]} 31. Rc7 {[%emt 0:00:12]} Rd7 {[%emt 0:00:07]} 32. Rc8+ {[%emt 0:00:25]} Kg7 {[%emt 0:01:10]} 33. h6+ {[%emt 0:00:33]} Kxh6 {[%emt 0:00:30]} 34. Rg8 {[%emt 0:00:02]} f4 {[%emt 0:01:39]} 35. Qxf4+ {[%emt 0:00:10]} Kh5 {[%emt 0:00:28]} 36. Qh2+ {[%emt 0:00:30]} Kg4 {[%emt 0:00:26]} 37. Qh3+ {[%emt 0:00:15]} Kf4 {[%emt 0:00:13]} 38. Qf3+ {[%emt 0:01:00]} Kg5 {[%emt 0:00:04]} 39. Be3+ {[%emt 0:00:12]} Kh4 {[%emt 0:00:03]} 40. Rh8 {[%emt 0:02:41]} h5 {[%emt 0:00:35]} 41. Qf4+ {[%emt 0:00:18]} Qg4 {[%emt 0:00:10]} 42. Bf2# {[%emt 0:00:10]} 1-0

[Event "2nd Namma Bengaluru Open-B 2025"]
[Site "Bengaluru"]
[Date "2025.04.12"]
[Round "6.6"]
[White "Swapnil Priyadarshi"]
[Black "Karthikeyan, J.."]
[Result "1-0"]
[Annotator "RC"]
[ECO "B90"]
[WhiteElo "1814"]
[BlackElo "1916"]
[PlyCount "107"]
[EventDate "2025.04.10"]
[EventType "swiss"]
[EventCountry "IND"]
[SourceTitle "playchess.com"]
[Source "ChessBase"]
[SourceQuality "1"]
[TimeControl "3600+30"]

1. e4 {[%emt 0:03:46]} c5 {[%emt 0:00:08]} 2. Nf3 {[%emt 0:00:04]} d6 {[%emt 0:00:07]} 3. d4 {[%emt 0:00:04]} cxd4 {[%emt 0:00:05]} 4. Nxd4 {[%emt 0:00:03]} Nf6 {[%emt 1:02:10]} 5. Nc3 {[%emt 0:00:03]} a6 {[%emt 0:00:00]} 6. f3 {[%emt 0:00:06]} e6 {[%emt 0:00:00]} 7. g4 {[%emt 0:00:34]} b5 {[%emt 0:00:00]} 8. a3 {[%emt 0:00:13]} Bb7 {[%emt 0:00:00]} 9. Be3 {[%emt 0:00:25]} Be7 {[%emt 0:00:00]} 10. Qd2 {[%emt 0:00:25]} Nc6 {[%emt 0:00:00]} 11. O-O-O {[%emt 0:00:55]} Rc8 {[%emt 0:00:00]} 12. Qf2 {[%emt 0:08:05]} Ne5 {[%emt 0:00:00]} 13. h3 {[%emt 0:12:14]} Nc4 {[%emt 0:00:00]} 14. Bxc4 {[%emt 0:00:11]} Rxc4 {[%emt 0:00:00]} 15. Nb3 {[%emt 0:02:22]} Nd7 {[%emt 0:00:00]} 16. Kb1 {[%emt 0:02:05]} Qc7 {[%emt 0:00:00]} 17. Rhe1 {[%emt 0:11:58]} O-O {[%emt 0:00:00]} 18. Bd4 {[%emt 0:03:20]} Rc8 {[%emt 0:00:00]} 19. Nd2 {[%emt 0:03:38]} Bh4 {[%emt 0:00:00]} 20. Qxh4 {[%emt 0:01:27]} Rxd4 {[%emt 0:00:00]} 21. Nb3 {[%emt 0:01:09]} Rxd1+ {[%emt 0:00:00]} 22. Rxd1 {[%emt 0:00:05]} Ne5 {[%emt 0:00:00]} 23. Qf2 {[%emt 0:02:33]} Nc4 {[%emt 0:00:00]} 24. Rd3 {[%emt 0:01:13]} Bc6 {[%emt 0:00:00]} 25. Nd2 {[%emt 0:02:53]} Ne5 {[%emt 0:00:00]} 26. Re3 {[%emt 0:00:05]} a5 {[%emt 0:00:00]} 27. f4 {[%emt 0:04:40]} Nd7 {[%emt 0:00:00]} 28. Na2 {[%emt 0:01:17]} Qb7 {[%emt 0:00:00]} 29. Rc3 {[%emt 0:01:16]} Nf6 {[%emt 0:00:00]} 30. Qd4 {[%emt 0:00:43]} d5 {[%emt 0:00:00]} 31. e5 {[%emt 0:01:15]} Ne4 {[%emt 0:13:30]} 32. Nxe4 {[%emt 0:00:04]} dxe4 {[%emt 0:00:00]} 33. b4 {[%emt 0:01:14]} a4 {[%emt 0:00:00]} 34. Rc5 {[%emt 0:00:17]} h6 {[%emt 0:00:00]} 35. Nc3 {[%emt 0:07:18]} Kh8 {[%emt 0:00:00]} 36. Kc1 {[%emt 0:00:00]} e3 {[%emt 0:00:00]} 37. Qxe3 {[%emt 0:00:00]} Rd8 {[%emt 0:00:00]} 38. Qe2 {[%emt 0:00:00]} Qd7 {[%emt 0:00:00]} 39. Qe3 {[%emt 0:00:00]} Kg8 {[%emt 0:00:00]} 40. Kb2 {[%emt 0:00:00]} Kh8 {[%emt 0:00:00]} 41. f5 {[%emt 0:00:00]} Kh7 {[%emt 0:00:00]} 42. Qf4 {[%emt 0:01:37]} Rb8 {[%emt 0:00:00]} 43. h4 {[%emt 0:00:36]} Rd8 {[%emt 0:00:00]} 44. h5 {[%emt 0:00:27]} Rg8 {[%emt 0:00:00]} 45. f6 {[%emt 0:01:10]} g6 {[%emt 0:00:00]} 46. hxg6+ {[%emt 0:00:04]} Rxg6 {[%emt 0:00:00]} 47. Ne2 {[%emt 0:00:40]} Bd5 {[%emt 0:00:00]} 48. Qd4 {[%emt 0:00:35]} Qe8 {[%emt 0:00:00]} 49. Rc7 {[%emt 0:00:37]} Kg8 {[%emt 0:00:00]} 50. Qc5 {[%emt 0:00:09]} Kh7 {[%emt 0:00:00]} 51. Re7 {[%emt 0:00:49]} Qg8 {[%emt 0:00:00]} 52. Qc7 {[%emt 0:00:19]} Rxg4 {[%emt 0:00:00]} 53. Rxf7+ {[%emt 0:00:10]} Kh8 {[%emt 0:00:00]} 54. Qe7 {[%emt 0:00:27]} 1-0

[Event "2nd Namma Bengaluru Open-B 2025"]
[Site "Bengaluru"]
[Date "2025.04.12"]
[Round "6.7"]
[White "Arush A"]
[Black "Karyasheel P"]
[Result "0-1"]
[Annotator "NA RC"]
[ECO "B33"]
[WhiteElo "1876"]
[BlackElo "1808"]
[PlyCount "106"]
[EventDate "2025.04.10"]
[EventType "swiss"]
[EventCountry "IND"]
[SourceTitle "playchess.com"]
[Source "ChessBase"]
[SourceQuality "1"]
[TimeControl "3600+30"]

1. e4 {[%emt 0:00:22]} c5 {[%emt 0:00:29]} 2. Nf3 {[%emt 0:00:23]} Nc6 {[%emt 1:01:01]} 3. d4 {[%emt 0:02:00]} cxd4 {[%emt 0:00:00]} 4. Nxd4 {[%emt 0:00:05]} Nf6 {[%emt 0:00:00]} 5. Nc3 {[%emt 0:01:14]} e5 {[%emt 0:00:00]} 6. Nb3 {[%emt 0:07:13]} Bb4 {[%emt 0:00:00]} 7. Bd3 {[%emt 0:00:21]} d5 {[%emt 0:00:00]} 8. exd5 {[%emt 0:01:29]} Nxd5 {[%emt 0:00:00]} 9. Bd2 {[%emt 0:00:06]} Nxc3 {[%emt 0:00:00]} 10. Bxc3 {[%emt 0:00:53]} Bxc3+ {[%emt 0:00:00]} 11. bxc3 {[%emt 0:00:04]} Qg5 {[%emt 0:00:00] B33: Sicilian: Pelikan and Sveshnikov Variations.} 12. O-O {[%emt 0:05:25]} O-O {[%emt 0:00:00]} 13. Be4 {[%emt 0:06:22]} Rd8 {[%emt 0:00:00]} 14. Qf3 {[%emt 0:04:12]} Rb8 {[%emt 0:00:00]} 15. Bxc6 {[%emt 0:09:14]} bxc6 {[%emt 0:00:00]} 16. Rfe1 {[%emt 0:02:12]} Be6 {[%emt 0:00:00]} 17. Qe3 {[%emt 0:02:08]} Qxe3 {[%emt 0:00:00]} 18. Rxe3 {[%emt 0:00:07]} f6 {[%emt 0:00:00]} 19. Kf1 {[%emt 0:06:58]} Bf5 {[%emt 0:00:00]} 20. Rc1 {[%emt 0:01:21]} Rb6 {[%emt 0:00:00]} 21. Re2 {[%emt 0:04:47]} Ra6 {[%emt 0:00:00]} 22. Ra1 {[%emt 0:01:21]} Rb8 {[%emt 0:00:00]} 23. h4 {[%emt 0:07:57]} Ra4 {[%emt 0:00:00]} 24. g3 {[%emt 0:00:37]} Rc4 {[%emt 0:00:00]} 25. Re3 {[%emt 0:01:52]} Bxc2 {[%emt 0:00:00]} 26. Nd2 {[%emt 0:00:12]} Ra4 {[%emt 0:00:00]} 27. Ke1 {[%emt 0:01:11]} Rb2 {[%emt 0:00:00]} 28. a3 {[%emt 0:00:41]} Bf5 {[%emt 0:00:00]} 29. c4 {[%emt 0:01:20]} Ra6 {[%emt 0:04:03]} 30. Rf3 {[%emt 0:01:46]} Bg4 {[%emt 0:02:27]} 31. Rd3 {[%emt 0:00:43]} Rab6 {[%emt 0:03:12]} 32. f3 {[%emt 0:00:52]} Bf5 {[%emt 0:01:02]} 33. Rd6 {[%emt 0:00:49]} Rc2 {[%emt 0:02:47]} 34. g4 {[%emt 0:00:17]} Bg6 {[%emt 0:01:06]} 35. Rd8+ {[%emt 0:00:27]} Kf7 {[%emt 0:00:02]} 36. Rd7+ {[%emt 0:00:24]} Ke6 {[%emt 0:00:22]} 37. Rxa7 {[%emt 0:00:30]} Rbb2 {[%emt 0:00:35]} 38. Rd1 {[%emt 0:00:13]} Ra2 {[%emt 0:00:27]} 39. Ra6 {[%emt 0:01:02]} Be8 {[%emt 0:01:04]} 40. Ra7 {[%emt 0:00:33]} Bg6 {[%emt 0:00:59]} 41. Ra6 {[%emt 0:00:14]} Be8 {[%emt 0:00:21]} 42. h5 {[%emt 0:00:13]} f5 {[%emt 0:00:42]} 43. Ra7 {[%emt 0:00:07]} e4 {[%emt 0:00:21]} 44. gxf5+ {[%emt 0:01:25]} Kxf5 {[%emt 0:00:18]} 45. Nxe4 {[%emt 0:00:38]} Kf4 {[%emt 0:00:33]} 46. Nd2 {[%emt 0:00:24]} Bxh5 {[%emt 0:00:14]} 47. Rxg7 {[%emt 0:00:20]} Bg6 {[%emt 0:00:22]} 48. Rc7 {[%emt 0:00:47]} Rxa3 {[%emt 0:00:34]} 49. Rxc6 {[%emt 0:00:21]} Re3+ {[%emt 0:00:24]} 50. Kf1 {[%emt 0:00:04]} Kg3 $2 {[%emt 0:00:24]} ({Black should try} 50... Bd3+ $19 51. Kg1 Kg3) 51. Rc7 {[%emt 0:00:41]} Bd3+ {[%emt 0:00:11]} 52. Kg1 {[%emt 0:00:04]} Rxd2 {[%emt 0:00:22]} 53. Rg7+ {[%emt 0:00:08]} Bg6 {[%emt 0:00:04]} ({And not} 53... Kxf3 54. Rxd2 Re1+ 55. Kh2 Bxc4 56. Rg3+ (56. Rxh7 Re2+ 57. Rxe2 Kxe2 $11) 56... Ke4 57. Rg4+ Ke3 58. Rd8 Re2+ 59. Kg3 $16) 0-1